fUSD/lending_fUSD_20241009
["ID","MTS","AMOUNT","RATE_DAILY","PERIOD"]
[340084414,1728483063000,-500.0,0.00047945,120]
[340084415,1728483063009,-500.0,0.00047945,120]
[340084416,1728483063019,-500.0,0.00047945,120]
[340084417,1728483063029,-500.0,0.00047945,120]
[340084418,1728483063039,-500.0,0.00047945,120]
[340084419,1728483063048,-1177.68,0.00047945,120]
[340084420,1728483063058,-151.0,0.00047945,14]
[340084421,1728483063068,-2266.37,0.00047945,120]
[340084422,1728483063078,-1290.11,0.00047945,120]
[340084423,1728483063088,-500.0,0.00047945,120]
[340084424,1728483063097,-4920.48,0.00047945,120]
[340084425,1728483063107,-787.34,0.00047945,120]
[340084426,1728483063116,-151.0,0.00047945,14]
[340084427,1728483063130,-683.71,0.00047945,120]
[340084428,1728483063140,-500.0,0.00047945,120]
[340084429,1728483063150,-500.0,0.00047945,120]
[340084430,1728483063160,-701.53,0.00047945,120]
[340084431,1728483063170,-500.0,0.00047945,120]
[340084432,1728483063179,-500.0,0.00047945,120]
[340084433,1728483063189,-500.0,0.00047945,120]
[340084434,1728483063199,-1656.33,0.00047945,120]
[340084435,1728483063208,-4130.35,0.00047945,120]
[340084436,1728483063217,-1089.62,0.00047945,120]
[340084437,1728483063227,-500.0,0.00047945,120]
[340084438,1728483063236,-500.0,0.00047945,120]
[340084439,1728483063246,-500.0,0.00047945,120]
[340084440,1728483063255,-151.0,0.00047945,14]
[340084441,1728483063264,-500.0,0.00047945,120]
[340084442,1728483063274,-1977.12,0.00047945,120]
[340084443,1728483063284,-575.52,0.00047945,120]
[340084444,1728483063294,-2110.0,0.00047998,2]
[340084445,1728483063306,-1000.0,0.00047999,120]
[340084446,1728483063315,-50000.0,0.00048,48]
[340084447,1728483063324,-50000.0,0.00048,58]
[340084448,1728483063333,-1000.0,0.00048,120]
[340084449,1728483063343,-150.0,0.00048,90]
[340084450,1728483063352,-701.26952927,0.00048,120]
[340084451,1728483063361,-701.37351417,0.00048,120]
[340084452,1728483063371,-151.100905,0.00048198,120]
[340084453,1728483063381,-2000.0,0.00048219,30]
[340084454,1728483063391,-500.0,0.00048219,120]
[340084455,1728483063400,-500.0,0.00048219,120]
[340084456,1728483063411,-500.0,0.00048219,120]
[340084457,1728483063420,-500.0,0.00048219,120]
[340084458,1728483063429,-500.0,0.00048219,120]
[340084459,1728483063438,-618.01,0.00048219,120]
[340084460,1728483063539,-1451.08,0.00048219,120]
[340084461,1728483063549,-500.0,0.00048219,120]
[340084462,1728483063559,-500.0,0.00048219,30]
[340084463,1728483063568,-500.0,0.00048219,120]
[340084464,1728483063578,-389.21639667,0.00048219,120]
[340084465,1728483063588,-846.31,0.00048219,120]
[340084466,1728483063597,-500.0,0.00048219,120]
[340084467,1728483063606,-753.52,0.00048219,120]
[340084468,1728483063616,-1157.85,0.00048219,120]
[340084469,1728483063625,-500.0,0.00048219,120]
[340084470,1728483063634,-500.0,0.00048219,120]
[340084471,1728483063644,-500.0,0.00048219,120]
[340084472,1728483063653,-1564.12,0.00048219,120]
[340084473,1728483063664,-886.66,0.00048219,120]
[340084474,1728483063673,-500.0,0.00048219,120]
[340084475,1728483063682,-522.49,0.00048219,120]
[340084476,1728483063691,-670.68,0.00048219,120]
[340084477,1728483063700,-850.28,0.00048219,120]
[340084478,1728483063710,-500.0,0.00048219,120]
[340084479,1728483063719,-202.76317291,0.00048219,120]
[340084480,1728483063729,-500.0,0.00048219,120]
[340084481,1728483063739,-947.9,0.00048219,120]
[340084482,1728483063748,-500.0,0.00048219,120]
[340084483,1728483063758,-522.10252822,0.00048219,120]
[340084484,1728483063767,-500.0,0.00048219,120]
[340084485,1728483063776,-500.0,0.00048219,120]
[340084486,1728483063785,-876.86,0.00048219,120]
[340084487,1728483063795,-500.0,0.00048219,120]
[340084488,1728483063805,-500.0,0.00048219,120]
[340084489,1728483063814,-377.6104427,0.00048219,120]
[340084490,1728483063824,-1986.59,0.00048219,120]
[340084491,1728483063833,-376.37219798,0.00048219,5]
[340084492,1728483063843,-1210.77,0.00048219,120]
[340084493,1728483063852,-500.0,0.00048219,120]
[340084494,1728483063861,-500.0,0.00048219,120]
[340084495,1728483063871,-1165.3,0.00048219,120]
[340084496,1728483063880,-500.0,0.00048219,120]
[340084497,1728483063890,-500.0,0.00048219,120]
[340084498,1728483063900,-500.0,0.00048219,120]
[340084499,1728483063911,-1041.23,0.00048219,120]
[340084500,1728483063921,-500.0,0.00048219,120]
[340084501,1728483063931,-547.28,0.00048219,120]
[340084502,1728483063941,-1134.65,0.00048219,120]
[340084503,1728483063951,-500.0,0.00048219,120]
[340084504,1728483063962,-500.0,0.00048219,120]
[340084505,1728483063972,-500.0,0.00048219,120]
[340084506,1728483063982,-500.0,0.00048219,120]
[340084507,1728483063991,-802.81,0.00048219,120]
[340084508,1728483064001,-600.91,0.00048219,120]
[340084509,1728483064010,-500.0,0.00048219,120]
[340084510,1728483064020,-517.0870224,0.00048219,120]
[340084511,1728483064029,-500.0,0.00048219,120]
[340084512,1728483064040,-602.77,0.00048219,120]
[340084513,1728483064049,-852.96,0.00048219,120]
[340084514,1728483064059,-500.0,0.00048219,120]
[340084515,1728483064068,-500.0,0.00048219,120]
[340084516,1728483064078,-629.59,0.00048219,120]
[340084517,1728483064088,-500.0,0.00048219,120]
[340084518,1728483064098,-1451.23,0.00048219,120]
[340084519,1728483064108,-500.0,0.00048219,120]
[340084520,1728483064119,-1122.46,0.00048219,14]
[340084521,1728483064128,-981.98,0.00048219,120]
[340084522,1728483064138,-1136.99,0.00048219,120]
[340084523,1728483064148,-500.0,0.00048219,120]
[340084524,1728483064159,-500.0,0.00048219,120]
[340084525,1728483064168,-1055.11,0.00048219,120]
[340084526,1728483064178,-500.0,0.00048219,120]
[340084527,1728483064188,-500.0,0.00048219,120]
[340084528,1728483064198,-500.0,0.00048219,120]
[340084529,1728483064208,-500.0,0.00048219,120]
[340084530,1728483064217,-500.0,0.00048219,120]
[340084531,1728483064227,-500.0,0.00048219,120]
[340084532,1728483064237,-500.0,0.00048219,120]
[340084533,1728483064246,-500.0,0.00048219,120]
[340084534,1728483064256,-606.49,0.00048219,120]
[340084535,1728483064266,-500.0,0.00048219,120]
[340084536,1728483064276,-573.66,0.00048219,120]
[340084537,1728483064286,-601.49,0.00048219,120]
[340084538,1728483064300,-538.27,0.00048219,120]
[340084539,1728483064310,-518.95156206,0.00048219,120]
[340084540,1728483064320,-601.78,0.00048219,120]
[340084541,1728483064331,-463.63318894,0.00048219,120]
[340084542,1728483064340,-500.0,0.00048219,120]
[340084543,1728483064350,-719.81,0.00048219,120]
[340084544,1728483064360,-495.91208361,0.00048219,120]
[340084545,1728483064370,-585.65628646,0.00048219,120]
[340084546,1728483064380,-717.95,0.00048219,120]
[340084547,1728483064389,-831.96,0.00048219,120]
[340084548,1728483064399,-558.66029221,0.00048219,120]
[340084549,1728483064409,-500.0,0.00048219,120]
[340084550,1728483064419,-500.0,0.00048219,120]
[340084551,1728483064428,-572.98,0.00048219,120]
[340084552,1728483064437,-987.24,0.00048219,7]
[340084553,1728483064446,-500.0,0.00048219,120]
[340084554,1728483064455,-572.85,0.00048219,120]
[340084555,1728483064465,-521.1170017,0.00048219,120]
[340084556,1728483064474,-652.87,0.00048219,120]
[340084557,1728483064483,-500.0,0.00048219,120]
[340084558,1728483064492,-2036.73,0.00048219,120]
[340084559,1728483064502,-874.86,0.00048219,120]
[340084560,1728483064511,-500.0,0.00048219,120]
[340084561,1728483064520,-500.0,0.00048219,120]
[340084562,1728483064530,-500.0,0.00048219,120]
[340084563,1728483064539,-151.0,0.00048219,14]
[340084564,1728483064548,-651.59,0.00048219,120]
[340084565,1728483064557,-500.0,0.00048219,120]
[340084566,1728483064567,-2203.5,0.00048219,120]
[340084567,1728483064576,-634.67,0.00048219,120]
[340084568,1728483064586,-500.0,0.00048219,120]
[340084569,1728483064596,-500.0,0.00048219,120]
[340084570,1728483064605,-19175.31,0.00048219,30]
[340084571,1728483064614,-505.82,0.00048219,120]
[340084572,1728483064623,-292.27,0.00048219,120]
[340084573,1728483064633,-500.0,0.00048219,120]
[340084574,1728483064642,-737.32,0.00048219,120]
[340084575,1728483064652,-4241.74,0.00048219,120]
[340084576,1728483064662,-1149.7,0.00048219,120]
[340084577,1728483064671,-500.0,0.00048219,120]
[340084578,1728483064681,-500.0,0.00048219,120]
[340084579,1728483064690,-1602.87,0.00048219,120]
[340084580,1728483064700,-500.0,0.00048219,120]
[340084581,1728483064709,-763.91,0.00048219,120]
[340084582,1728483064718,-4633.52,0.00048219,120]
[340084583,1728483064728,-580.52,0.00048219,120]
[340084584,1728483064737,-500.0,0.00048219,120]
[340084585,1728483064747,-500.0,0.00048219,120]
[340084586,1728483064756,-250.0,0.00048219,120]
[340084587,1728483064765,-3031.83,0.00048219,120]
[340084588,1728483064775,-566.12,0.00048219,120]
[340084589,1728483064784,-500.0,0.00048219,120]
[340084590,1728483064794,-1074.03,0.00048219,120]
[340084591,1728483064804,-865.65,0.00048219,120]
[340084592,1728483064813,-500.0,0.00048219,120]
[340084593,1728483064824,-500.0,0.00048219,120]
[340084594,1728483064834,-1127.61,0.00048219,120]
[340084595,1728483064844,-1189.5,0.00048219,120]
[340084596,1728483064854,-500.0,0.00048219,120]
[340084597,1728483064864,-500.0,0.00048219,120]
[340084598,1728483064874,-500.0,0.00048219,120]
[340084599,1728483064884,-596.3,0.00048219,120]
[340084600,1728483064893,-2227.48,0.00048219,120]
[340084601,1728483064903,-500.0,0.00048219,120]
[340084602,1728483064914,-500.0,0.00048219,120]
[340084603,1728483064924,-500.0,0.00048219,120]
[340084604,1728483064933,-500.0,0.00048219,120]
[340084605,1728483064943,-848.41,0.00048219,120]
[340084606,1728483064953,-1363.03,0.00048219,120]
[340084607,1728483064962,-549.7,0.00048219,120]
[340084608,1728483064972,-500.0,0.00048219,120]
[340084609,1728483064981,-500.0,0.00048219,120]
[340084610,1728483064991,-500.0,0.00048219,120]
[340084611,1728483065000,-658.7,0.00048219,120]
[340084612,1728483065010,-670.49,0.00048219,120]
[340084613,1728483065020,-784.85,0.00048219,120]
[340084614,1728483065029,-500.0,0.00048219,120]
[340084615,1728483065039,-500.0,0.00048219,120]
[340084616,1728483065048,-843.96,0.00048219,120]
[340084617,1728483065057,-970.83,0.00048219,120]
[340084618,1728483065067,-500.0,0.00048219,120]
[340084619,1728483065076,-500.0,0.00048219,120]
[340084620,1728483065086,-500.0,0.00048219,120]
[340084621,1728483065095,-500.0,0.00048219,120]
[340084622,1728483065105,-500.0,0.00048219,120]
[340084623,1728483065114,-500.0,0.00048219,120]
[340084624,1728483065124,-500.0,0.00048219,120]
[340084625,1728483065133,-500.0,0.00048219,120]
[340084626,1728483065142,-500.0,0.00048219,120]
[340084627,1728483065152,-500.0,0.00048219,120]
[340084628,1728483065162,-500.0,0.00048219,120]
[340084629,1728483065172,-500.0,0.00048219,21]
[340084630,1728483065181,-500.0,0.00048219,120]
[340084631,1728483065190,-496.18407523,0.00048219,120]
[340084632,1728483065199,-500.0,0.00048219,120]
[340084633,1728483065208,-500.0,0.00048219,120]
[340084634,1728483065218,-500.0,0.00048219,120]
[340084635,1728483065227,-500.0,0.00048219,120]
[340084636,1728483065236,-1177.68,0.00048219,120]
[340084637,1728483065245,-1290.11,0.00048219,120]
[340084638,1728483065255,-2266.37,0.00048219,120]
[340084639,1728483065264,-500.0,0.00048219,120]
[340084640,1728483065273,-4920.48,0.00048219,120]
[340084641,1728483065282,-787.34,0.00048219,120]
[340084642,1728483065291,-500.0,0.00048219,120]
[340084643,1728483065387,-683.71,0.00048219,120]
[340084644,1728483065398,-500.0,0.00048219,120]
[340084645,1728483065407,-701.53,0.00048219,120]
[340084646,1728483065417,-500.0,0.00048219,120]
[340084647,1728483065427,-500.0,0.00048219,120]
[340084648,1728483065437,-500.0,0.00048219,120]
[340084649,1728483065446,-1656.33,0.00048219,120]
[340084650,1728483065455,-4130.35,0.00048219,120]
[340084651,1728483065464,-1089.62,0.00048219,120]
[340084652,1728483065473,-500.0,0.00048219,120]
[340084653,1728483065482,-500.0,0.00048219,120]
[340084654,1728483065492,-184.17581068,0.00048219,120]
[340084655,1728483065501,-500.0,0.00048219,120]
[340084656,1728483065510,-1977.12,0.00048219,120]
[340084657,1728483065519,-620.13519376,0.00048251,2]
[340084658,1728483065529,-8915.5527073,0.000484,25]
[340084659,1728483065538,-192.0,0.000484,120]
[340084660,1728483065548,-513.3305262,0.00048468,2]
[340084661,1728483065557,-389.14216856,0.00048479,2]
[340084662,1728483065566,-2000.0,0.00048493,30]
[340084663,1728483065575,-500.0,0.00048493,120]
[340084664,1728483065585,-500.0,0.00048493,120]
[340084665,1728483065594,-500.0,0.00048493,120]
[340084666,1728483065603,-500.0,0.00048493,120]
[340084667,1728483065612,-568.2039544,0.00048493,120]
[340084668,1728483065621,-618.01,0.00048493,120]
[340084669,1728483065630,-1451.08,0.00048493,120]
[340084670,1728483065639,-500.0,0.00048493,120]
[340084671,1728483065648,-518.51667972,0.00048493,30]
[340084672,1728483065657,-500.0,0.00048493,120]
[340084673,1728483065666,-846.31,0.00048493,120]
[340084674,1728483065676,-500.0,0.00048493,120]
[340084675,1728483065685,-753.52,0.00048493,120]
[340084676,1728483065694,-1157.85,0.00048493,120]
[340084677,1728483065703,-500.0,0.00048493,120]
[340084678,1728483065712,-500.0,0.00048493,120]
[340084679,1728483065721,-500.0,0.00048493,120]
[340084680,1728483065731,-1564.12,0.00048493,120]
[340084681,1728483065740,-886.66,0.00048493,120]
[340084682,1728483065749,-500.0,0.00048493,120]
[340084683,1728483065759,-522.49,0.00048493,120]
[340084684,1728483065768,-670.68,0.00048493,120]
[340084685,1728483065778,-850.28,0.00048493,120]
[340084686,1728483065787,-500.0,0.00048493,120]
[340084687,1728483065796,-500.0,0.00048493,120]
[340084688,1728483065805,-947.9,0.00048493,120]
[340084689,1728483065815,-500.0,0.00048493,120]
[340084690,1728483065825,-500.0,0.00048493,120]
[340084691,1728483065835,-500.0,0.00048493,120]
[340084692,1728483065844,-876.86,0.00048493,120]
[340084693,1728483065854,-38.5719842,0.00048493,120]
[340084694,1728483066005,-461.4280158,0.00048493,120]
[340084695,1728483066015,-500.0,0.00048493,120]
[340084696,1728483066024,-1986.59,0.00048493,120]
[340084697,1728483066033,-1210.77,0.00048493,120]
[340084698,1728483066042,-500.0,0.00048493,120]
[340084699,1728483066052,-500.0,0.00048493,120]
[340084700,1728483066061,-1165.3,0.00048493,120]
[340084701,1728483066070,-500.0,0.00048493,120]
[340084702,1728483066079,-500.0,0.00048493,120]
[340084703,1728483066089,-344.71118871,0.00048493,120]
[340084704,1728483066098,-1041.23,0.00048493,120]
[340084705,1728483066107,-500.0,0.00048493,120]
[340084706,1728483066116,-547.28,0.00048493,120]
[340084707,1728483066126,-1134.65,0.00048493,120]
[340084708,1728483066136,-500.0,0.00048493,120]
[340084709,1728483066145,-500.0,0.00048493,120]
[340084710,1728483066154,-500.0,0.00048493,120]
[340084711,1728483066164,-500.0,0.00048493,120]
[340084712,1728483066173,-802.81,0.00048493,120]
[340084713,1728483066182,-600.91,0.00048493,120]
[340084714,1728483066192,-500.0,0.00048493,120]
[340084715,1728483066202,-500.0,0.00048493,120]
[340084716,1728483066212,-602.77,0.00048493,120]
[340084717,1728483066221,-852.96,0.00048493,120]
[340084718,1728483066230,-500.0,0.00048493,120]
[340084719,1728483066239,-500.0,0.00048493,120]
[340084720,1728483066248,-629.59,0.00048493,120]
[340084721,1728483066258,-502.52892702,0.00048493,120]
[340084722,1728483066268,-1451.23,0.00048493,120]
[340084723,1728483066278,-500.0,0.00048493,120]
[340084724,1728483066288,-1122.46,0.00048493,14]
[340084725,1728483066301,-981.98,0.00048493,120]
[340084726,1728483066310,-1136.99,0.00048493,120]
[340084727,1728483066319,-500.0,0.00048493,120]
[340084728,1728483066328,-1055.11,0.00048493,120]
[340084729,1728483066338,-333.4532256,0.00048493,120]
[340084730,1728483066349,-500.0,0.00048493,120]
[340084731,1728483066358,-500.0,0.00048493,120]
[340084732,1728483066370,-500.0,0.00048493,120]
[340084733,1728483066379,-500.0,0.00048493,120]
[340084734,1728483066389,-500.0,0.00048493,120]
[340084735,1728483066398,-500.0,0.00048493,120]
[340084736,1728483066408,-500.0,0.00048493,120]
[340084737,1728483066418,-500.0,0.00048493,120]
[340084738,1728483066427,-606.49,0.00048493,120]
[340084739,1728483066436,-500.0,0.00048493,120]
[340084740,1728483066446,-573.66,0.00048493,120]
[340084741,1728483066455,-601.49,0.00048493,120]
[340084742,1728483066464,-538.27,0.00048493,120]
[340084743,1728483066474,-601.78,0.00048493,120]
[340084744,1728483066484,-500.0,0.00048493,120]
[340084745,1728483066493,-719.81,0.00048493,120]
[340084746,1728483066503,-151.0,0.00048493,14]
[340084747,1728483066512,-717.95,0.00048493,120]
[340084748,1728483066522,-831.96,0.00048493,120]
[340084749,1728483066531,-500.0,0.00048493,120]
[340084750,1728483066540,-500.0,0.00048493,120]
[340084751,1728483066549,-572.98,0.00048493,120]
[340084752,1728483066559,-987.24,0.00048493,7]
[340084753,1728483066568,-151.0,0.00048493,7]
[340084754,1728483066577,-589.05347166,0.00048493,120]
[340084755,1728483066586,-572.85,0.00048493,120]
[340084756,1728483066595,-652.87,0.00048493,120]
[340084757,1728483066604,-500.0,0.00048493,120]
[340084758,1728483066613,-2036.73,0.00048493,120]
[340084759,1728483066623,-874.86,0.00048493,120]
[340084760,1728483066632,-500.0,0.00048493,120]
[340084761,1728483066641,-500.0,0.00048493,120]
[340084762,1728483066650,-500.0,0.00048493,120]
[340084763,1728483066661,-651.59,0.00048493,120]
[340084764,1728483066671,-500.0,0.00048493,120]
[340084765,1728483066680,-2203.5,0.00048493,120]
[340084766,1728483066691,-634.67,0.00048493,120]
[340084767,1728483066700,-500.0,0.00048493,120]
[340084768,1728483066709,-500.0,0.00048493,120]
[340084769,1728483066719,-8969.29483388,0.00048493,30]
[340084770,1728483066757,-1044.56179871,0.00048493,30]
[340084771,1728483066768,-1897.7856265,0.00048493,30]
[340084772,1728483066779,-647.03681964,0.00048493,30]
[340084773,1728483066790,-352.96318036,0.00048493,30]
[340084774,1728483066800,-1500.0,0.00048493,30]
[340084775,1728483066999,-500.0,0.00041096,2]
[340084776,1728483067009,-500.0,0.00047123,120]
[340084777,1728483067019,-240.54565649,0.00047386,28]
[340084778,1728483067029,-500.0,0.00047397,120]
[340084779,1728483067039,-311.51580222,0.00047397,120]
[340084780,1728483067050,-188.48419778,0.00047397,120]
[340084781,1728483067061,-500.0,0.00047671,120]
[340084782,1728483067071,-500.0,0.00047671,120]
[340084783,1728483067081,-500.0,0.00047945,120]
[340084784,1728483067090,-575.52,0.00048219,120]
[340084785,1728483067100,-2879.25580222,0.00048493,30]
[340084786,1728483067117,-1884.41193869,0.00048493,30]
[340084787,1728483067127,-292.27,0.00048493,120]
[340084788,1728483067137,-505.82,0.00048493,120]
[340084789,1728483067146,-324.55595626,0.00048493,120]
[340084790,1728483067157,-175.44404374,0.00048493,120]
[340084791,1728483067173,-737.32,0.00048493,120]
[340084792,1728483067182,-1326.50463402,0.00048493,120]
[340084793,1728483067193,-609.53823585,0.00048493,120]
[340084794,1728483067204,-1580.85761632,0.00048493,120]
[340084795,1728483067215,-724.83951381,0.00048493,120]
[340084796,1728483067225,-1083.70649899,0.00048493,120]
[340084797,1728483067236,-65.99350101,0.00048493,120]
[340084798,1728483067245,-500.0,0.00048493,120]
[340084799,1728483067255,-516.88716667,0.00048493,120]
[340084800,1728483067264,-1602.87,0.00048493,120]
[340084801,1728483067273,-500.0,0.00048493,120]
[340084802,1728483067283,-763.91,0.00048493,120]
[340084803,1728483067293,-4633.52,0.00048493,120]
[340084804,1728483067306,-500.0,0.00048493,120]
[340084805,1728483067315,-580.52,0.00048493,120]
[340084806,1728483067324,-500.0,0.00048493,120]
[340084807,1728483067334,-250.0,0.00048493,120]
[340084808,1728483067343,-3031.83,0.00048493,120]
[340084809,1728483067353,-566.12,0.00048493,120]
[340084810,1728483067362,-321.48797863,0.00048493,120]
[340084811,1728483067372,-1074.03,0.00048493,120]
[340084812,1728483067382,-865.65,0.00048493,120]
[340084813,1728483067391,-500.0,0.00048493,120]
[340084814,1728483067400,-401.11999185,0.00048493,120]
[340084815,1728483067409,-1127.61,0.00048493,120]
[340084816,1728483067425,-1189.5,0.00048493,120]
[340084817,1728483067438,-500.0,0.00048493,120]
[340084818,1728483067448,-500.0,0.00048493,120]
[340084819,1728483067457,-500.0,0.00048493,120]
[340084820,1728483067467,-596.3,0.00048493,120]
[340084821,1728483067477,-2227.48,0.00048493,120]
[340084822,1728483067486,-500.0,0.00048493,120]
[340084823,1728483067496,-500.0,0.00048493,120]
[340084824,1728483067505,-500.0,0.00048493,120]
[340084825,1728483067515,-500.0,0.00048493,120]
[340084826,1728483067524,-848.41,0.00048493,120]
[340084827,1728483067534,-1363.03,0.00048493,120]
[340084828,1728483067543,-549.7,0.00048493,120]
[340084829,1728483067552,-500.0,0.00048493,120]
[340084830,1728483067561,-500.0,0.00048493,120]
[340084831,1728483067571,-500.0,0.00048493,120]
[340084832,1728483067579,-658.7,0.00048493,120]
[340084833,1728483067588,-670.49,0.00048493,120]
[340084834,1728483067597,-784.85,0.00048493,120]
[340084835,1728483067607,-500.0,0.00048493,120]
[340084836,1728483067616,-500.0,0.00048493,120]
[340084837,1728483067625,-843.96,0.00048493,120]
[340084838,1728483067634,-970.83,0.00048493,120]
[340084839,1728483067643,-500.0,0.00048493,120]
[340084840,1728483067653,-266.7390184,0.00048493,120]
[340084841,1728483067667,-596.53106873,0.00048493,120]
[340084842,1728483067677,-500.0,0.00048493,120]
[340084843,1728483067687,-151.0,0.00048493,14]
[340084844,1728483067696,-500.0,0.00048493,120]
[340084845,1728483067705,-500.0,0.00048493,120]
[340084846,1728483067714,-500.0,0.00048493,120]
[340084847,1728483067724,-500.0,0.00048493,120]
[340084848,1728483067734,-352.23858261,0.00048493,120]
[340084849,1728483067743,-500.0,0.00048493,120]
[340084850,1728483067753,-500.0,0.00048493,120]
[340084851,1728483067762,-500.0,0.00048493,21]
[340084852,1728483067771,-500.0,0.00048493,120]
[340084853,1728483067781,-500.0,0.00048493,120]
[340084854,1728483067791,-500.0,0.00048493,120]
[340084855,1728483067800,-500.0,0.00048493,120]
[340084856,1728483067810,-169.32689188,0.00048493,120]
[340084857,1728483067820,-151.0,0.00048493,14]
[340084858,1728483067830,-1177.68,0.00048493,120]
[340084859,1728483067840,-2266.37,0.00048493,120]
[340084860,1728483067849,-1290.11,0.00048493,120]
[340084861,1728483067858,-479.85888347,0.00048493,120]
[340084862,1728483067867,-4920.48,0.00048493,120]
[340084863,1728483067876,-787.34,0.00048493,120]
[340084864,1728483067886,-151.0,0.00048493,14]
[340084865,1728483067896,-500.0,0.00048493,120]
[340084866,1728483067905,-683.71,0.00048493,120]
[340084867,1728483067921,-500.0,0.00048493,120]
[340084868,1728483067931,-701.53,0.00048493,120]
[340084869,1728483067940,-500.0,0.00048493,120]
[340084870,1728483067950,-500.0,0.00048493,120]
[340084871,1728483067959,-500.0,0.00048493,120]
[340084872,1728483067969,-1656.33,0.00048493,120]
[340084873,1728483067979,-4130.35,0.00048493,120]
[340084874,1728483067988,-1089.62,0.00048493,120]
[340084875,1728483067997,-500.0,0.00048493,120]
[340084876,1728483068007,-219.73608633,0.00048493,120]
[340084877,1728483068018,-500.0,0.00048493,120]
[340084878,1728483068027,-1977.12,0.00048493,120]
[340084879,1728483068037,-575.52,0.00048493,120]
[340084880,1728483068046,-157.10091,0.00048498,120]
[340084881,1728483068056,-70000.0,0.000485,60]
[340084882,1728483068066,-8707.55051222,0.0004853,2]
[340084883,1728483068075,-6559.0239556,0.00048678,15]
[340084884,1728483068085,-104986.28855712,0.000487,120]
[340084885,1728483068099,-16226.84102035,0.000487,120]
[340084886,1728483068111,-553.56974129,0.000487,120]
[340084887,1728483068122,-475.8663002,0.000487,120]
[340084888,1728483068133,-1429.02069593,0.000487,120]
[340084889,1728483068145,-353.68141749,0.000487,120]
[340084890,1728483068157,-10974.73226762,0.000487,120]
[340084891,1728483068173,-200.0,0.000487,120]
[340084892,1728483068183,-151.0,0.000487,14]
[340084893,1728483068192,-2000.0,0.00048767,30]
[340084894,1728483068201,-500.0,0.00048767,120]
[340084895,1728483068211,-500.0,0.00048767,120]
[340084896,1728483068221,-500.0,0.00048767,120]
[340084897,1728483068230,-500.0,0.00048767,120]
[340084898,1728483068240,-618.01,0.00048767,120]
[340084899,1728483068249,-1451.08,0.00048767,120]
[340084900,1728483068259,-500.0,0.00048767,120]
[340084901,1728483068268,-533.79830061,0.00048767,120]
[340084902,1728483068277,-846.31,0.00048767,120]
[340084903,1728483068287,-500.0,0.00048767,120]
[340084904,1728483068298,-753.52,0.00048767,120]
[340084905,1728483068309,-1157.85,0.00048767,120]
[340084906,1728483068318,-500.0,0.00048767,120]
[340084907,1728483068327,-500.0,0.00048767,120]
[340084908,1728483068338,-500.0,0.00048767,120]
[340084909,1728483068348,-1564.12,0.00048767,120]
[340084910,1728483068357,-886.66,0.00048767,120]
[340084911,1728483068367,-645.19236758,0.00048767,120]
[340084912,1728483068378,-522.49,0.00048767,120]
[340084913,1728483068387,-670.68,0.00048767,120]